[Event "Live Chess"]
[Site "Chess.com"]
[Date "2023.05.20"]
[Round "-"]
[White "lucaskk818"]
[Black "Tushinskiy"]
[Result "0-1"]
[WhiteElo "1883"]
[BlackElo "2129"]
[TimeControl "300"]
[EndTime "13:50:31 PDT"]
[Termination "Tushinskiy won by resignation"]

1. d4 {[%clk 0:04:58.1]} 1... d5 {[%clk 0:04:58.5]} 2. c4 {[%clk 0:04:57.6]}
2... c6 {[%clk 0:04:58.4]} 3. Nf3 {[%clk 0:04:56.4]} 3... e6 {[%clk 0:04:57.7]}
4. cxd5 {[%clk 0:04:55.1]} 4... exd5 {[%clk 0:04:56.8]} 5. Bf4 {[%clk
0:04:54.6]} 5... Nf6 {[%clk 0:04:56]} 6. e3 {[%clk 0:04:54]} 6... Bd6 {[%clk
0:04:55.5]} 7. Bxd6 {[%clk 0:04:52]} 7... Qxd6 {[%clk 0:04:55.4]} 8. Bd3 {[%clk
0:04:50.8]} 8... Bg4 {[%clk 0:04:54.6]} 9. h3 {[%clk 0:04:47.1]} 9... Bh5 {[%clk
0:04:53.4]} 10. O-O {[%clk 0:04:46.5]} 10... O-O {[%clk 0:04:51.9]} 11. Nbd2
{[%clk 0:04:46]} 11... Nbd7 {[%clk 0:04:51.1]} 12. Qb3 {[%clk 0:04:45.1]} 12...
Rab8 {[%clk 0:04:50.2]} 13. Rac1 {[%clk 0:04:44.1]} 13... Rfe8 {[%clk
0:04:49.1]} 14. Qa4 {[%clk 0:04:40.3]} 14... a6 {[%clk 0:04:47.8]} 15. Nb3
{[%clk 0:04:38.1]} 15... Bxf3 {[%clk 0:04:46.2]} 16. gxf3 {[%clk 0:04:36.1]}
16... Qe6 {[%clk 0:04:45.4]} 17. Nc5 {[%clk 0:04:26.3]} 17... Nxc5 {[%clk
0:04:44.2]} 18. Rxc5 {[%clk 0:04:23.9]} 18... Qxh3 {[%clk 0:04:43.1]} 19. Be2
{[%clk 0:04:19.6]} 19... g6 {[%clk 0:04:38]} 20. Rfc1 {[%clk 0:04:18.4]} 20...
Kg7 {[%clk 0:04:36.6]} 21. Qc2 {[%clk 0:04:13.3]} 21... h5 {[%clk 0:04:33.2]}
0-1

[Event "Live Chess"]
[Site "Chess.com"]
[Date "2023.05.20"]
[Round "-"]
[White "Geomorph"]
[Black "jk0110"]
[Result "1-0"]
[WhiteElo "1254"]
[BlackElo "1092"]
[TimeControl "300"]
[EndTime "13:50:33 PDT"]
[Termination "Geomorph won by resignation"]

1. e4 {[%clk 0:04:59.2]} 1... e5 {[%clk 0:04:56.7]} 2. Nf3 {[%clk 0:04:58.3]}
2... Nc6 {[%clk 0:04:55.2]} 3. Bc4 {[%clk 0:04:57.6]} 3... f5 {[%clk 0:04:53.7]}
4. exf5 {[%clk 0:04:41.9]} 4... e4 {[%clk 0:04:51.9]} 5. Qe2 {[%clk 0:04:35.6]}
5... Qe7 {[%clk 0:04:48]} 6. Ng1 {[%clk 0:04:21.1]} 6... Nd4 {[%clk 0:04:46.3]}
7. Qh5+ {[%clk 0:04:05.9]} 7... Kd8 {[%clk 0:04:29]} 8. Na3 {[%clk 0:04:04.8]}
8... Nf6 {[%clk 0:04:24.6]} 9. Qh4 {[%clk 0:03:44.7]} 9... d5 {[%clk 0:04:13.8]}
10. Bb3 {[%clk 0:03:38.4]} 10... Bxf5 {[%clk 0:03:59.4]} 11. c3 {[%clk
0:03:37.6]} 11... Nxb3 {[%clk 0:03:49.8]} 12. axb3 {[%clk 0:03:37.5]} 12... h6
{[%clk 0:03:14.2]} 13. Ne2 {[%clk 0:03:33.1]} 13... g5 {[%clk 0:03:11.6]} 14.
Qg3 {[%clk 0:03:32]} 14... Nh5 {[%clk 0:02:58.6]} 15. Qe3 {[%clk 0:03:25.2]}
15... Qd7 {[%clk 0:02:34.3]} 16. Nd4 {[%clk 0:03:16.2]} 16... Bg6 {[%clk
0:02:24.5]} 17. O-O {[%clk 0:03:10.5]} 17... Bc5 {[%clk 0:02:21.1]} 18. c4
{[%clk 0:02:53.9]} 18... Nf4 {[%clk 0:02:09.1]} 19. Nab5 {[%clk 0:02:42.3]}
19... a6 {[%clk 0:02:02.7]} 20. Nc3 {[%clk 0:02:38.1]} 20... Bxd4 {[%clk
0:02:01.7]} 21. Qxd4 {[%clk 0:02:35.9]} 21... Ne2+ {[%clk 0:02:00.8]} 22. Nxe2
{[%clk 0:02:34.4]} 22... c6 {[%clk 0:01:44.4]} 23. Qxh8+ {[%clk 0:02:28]} 1-0

[Event "Live Chess"]
[Site "Chess.com"]
[Date "2023.05.20"]
[Round "-"]
[White "FlyingChessKestrel13"]
[Black "bristolunichess"]
[Result "1-0"]
[WhiteElo "2109"]
[BlackElo "1820"]
[TimeControl "300"]
[EndTime "13:50:39 PDT"]
[Termination "FlyingChessKestrel13 won by resignation"]

1. e4 {[%clk 0:04:56.7]} 1... c5 {[%clk 0:04:59.2]} 2. Nc3 {[%clk 0:04:51.2]}
2... e6 {[%clk 0:04:57.3]} 3. g3 {[%clk 0:04:50.7]} 3... d5 {[%clk 0:04:54.5]}
4. exd5 {[%clk 0:04:48.8]} 4... exd5 {[%clk 0:04:54.4]} 5. Bg2 {[%clk
0:04:47.8]} 5... d4 {[%clk 0:04:53]} 6. Nce2 {[%clk 0:04:46.8]} 6... d3 {[%clk
0:04:40.2]} 7. cxd3 {[%clk 0:04:43.4]} 7... Qxd3 {[%clk 0:04:33.5]} 8. Nf4
{[%clk 0:04:42.3]} 8... Qd8 {[%clk 0:04:26.4]} 9. Nge2 {[%clk 0:04:40.1]} 9...
Nc6 {[%clk 0:04:23.7]} 10. O-O {[%clk 0:04:38.3]} 10... Nf6 {[%clk 0:04:23.3]}
11. Nc3 {[%clk 0:04:34.6]} 11... Be7 {[%clk 0:04:18.7]} 12. d3 {[%clk
0:04:31.7]} 12... O-O {[%clk 0:04:14.9]} 13. Nfd5 {[%clk 0:04:25.8]} 13... Nxd5
{[%clk 0:04:04.9]} 14. Nxd5 {[%clk 0:04:23.4]} 14... Bg5 {[%clk 0:04:02.2]} 15.
Bxg5 {[%clk 0:04:14.7]} 15... Qxg5 {[%clk 0:03:59.9]} 16. h4 {[%clk 0:04:13.8]}
16... Qe5 {[%clk 0:03:42.2]} 17. Qc2 {[%clk 0:04:09.5]} 17... Be6 {[%clk
0:03:37.6]} 18. Rae1 {[%clk 0:04:05.5]} 18... Qd6 {[%clk 0:03:35.3]} 19. Nf4
{[%clk 0:03:59.2]} 19... Nd4 {[%clk 0:03:10.2]} 20. Qd1 {[%clk 0:03:42]} 20...
Bxa2 {[%clk 0:03:05.9]} 21. Bxb7 {[%clk 0:03:31.8]} 21... Rab8 {[%clk
0:03:02.3]} 22. Bg2 {[%clk 0:03:25.9]} 22... Rxb2 {[%clk 0:02:57.7]} 23. Qa1
{[%clk 0:03:23.4]} 23... Rd2 {[%clk 0:02:21]} 24. Rc1 {[%clk 0:02:56.3]} 24...
Nb3 {[%clk 0:02:16.3]} 25. Qc3 {[%clk 0:02:51.6]} 25... Nxc1 {[%clk 0:01:03.4]}
26. Qxd2 {[%clk 0:02:48.3]} 26... Nxd3 {[%clk 0:00:52.5]} 27. Qxd3 {[%clk
0:02:37.9]} 27... Qxd3 {[%clk 0:00:50.3]} 28. Nxd3 {[%clk 0:02:36.1]} 28... Bc4
{[%clk 0:00:49.6]} 29. Rd1 {[%clk 0:02:34.4]} 29... Rd8 {[%clk 0:00:43.9]} 30.
Bf1 {[%clk 0:02:32]} 30... Bb3 {[%clk 0:00:38.6]} 31. Rc1 {[%clk 0:02:29]} 31...
c4 {[%clk 0:00:30.3]} 32. Nc5 {[%clk 0:02:26.9]} 32... a5 {[%clk 0:00:28.6]} 33.
Bxc4 {[%clk 0:02:22.2]} 33... Bxc4 {[%clk 0:00:26]} 34. Rxc4 {[%clk 0:02:20.2]}
1-0

[Event "Live Chess"]
[Site "Chess.com"]
[Date "2023.05.20"]
[Round "-"]
[White "ChessTWSS"]
[Black "JoeyCage"]
[Result "0-1"]
[WhiteElo "1677"]
[BlackElo "2310"]
[TimeControl "300"]
[EndTime "13:50:41 PDT"]
[Termination "JoeyCage won on time"]

1. d4 {[%clk 0:04:56.3]} 1... g6 {[%clk 0:04:57.5]} 2. Bf4 {[%clk 0:04:53.2]}
2... Bg7 {[%clk 0:04:56.5]} 3. e3 {[%clk 0:04:45.2]} 3... c5 {[%clk 0:04:55.2]}
4. c3 {[%clk 0:04:40.3]} 4... Qb6 {[%clk 0:04:53.4]} 5. Qb3 {[%clk 0:04:31.1]}
5... d6 {[%clk 0:04:49.7]} 6. Nd2 {[%clk 0:04:25.9]} 6... Nf6 {[%clk 0:04:40.3]}
7. Ngf3 {[%clk 0:04:21.1]} 7... O-O {[%clk 0:04:38]} 8. Bd3 {[%clk 0:04:16.7]}
8... Be6 {[%clk 0:04:36.4]} 9. Qxb6 {[%clk 0:04:02.6]} 9... axb6 {[%clk
0:04:35]} 10. O-O {[%clk 0:03:56.6]} 10... Nc6 {[%clk 0:04:29.4]} 11. e4 {[%clk
0:03:49.6]} 11... Bd7 {[%clk 0:04:14.8]} 12. e5 {[%clk 0:03:39.2]} 12... dxe5
{[%clk 0:04:11.8]} 13. dxe5 {[%clk 0:03:34.7]} 13... Ng4 {[%clk 0:04:07.6]} 14.
Nc4 {[%clk 0:03:22.7]} 14... Be6 {[%clk 0:03:56.7]} 15. Nxb6 {[%clk 0:03:18]}
15... Rxa2 {[%clk 0:03:54.4]} 16. Rxa2 {[%clk 0:03:12.3]} 16... Bxa2 {[%clk
0:03:52.7]} 17. Ra1 {[%clk 0:03:01.1]} 17... Be6 {[%clk 0:03:50.8]} 18. Bc4
{[%clk 0:02:54.9]} 18... Bxc4 {[%clk 0:03:44.7]} 19. Nxc4 {[%clk 0:02:54.8]}
19... b5 {[%clk 0:03:43.6]} 20. Ra6 {[%clk 0:02:45.3]} 20... Rc8 {[%clk
0:03:25.7]} 21. h3 {[%clk 0:02:33.7]} 21... bxc4 {[%clk 0:03:10]} 22. hxg4
{[%clk 0:02:30.1]} 22... e6 {[%clk 0:03:01.7]} 23. g3 {[%clk 0:02:05.5]} 23...
h6 {[%clk 0:03:00.2]} 24. g5 {[%clk 0:02:00.9]} 24... hxg5 {[%clk 0:02:58.5]}
25. Bxg5 {[%clk 0:01:59.3]} 25... Nxe5 {[%clk 0:02:56.3]} 26. Nxe5 {[%clk
0:01:57.8]} 26... Bxe5 {[%clk 0:02:55.2]} 27. f4 {[%clk 0:01:36.1]} 27... Bg7
{[%clk 0:02:52.9]} 28. Rb6 {[%clk 0:01:26.3]} 28... Bf8 {[%clk 0:02:38.5]} 29.
b3 {[%clk 0:01:19.1]} 29... cxb3 {[%clk 0:02:36.7]} 30. Rxb3 {[%clk 0:01:19]}
30... c4 {[%clk 0:02:33.7]} 31. Rb7 {[%clk 0:01:00.5]} 31... Bg7 {[%clk
0:02:32.2]} 32. g4 {[%clk 0:00:41.4]} 32... Bxc3 {[%clk 0:02:29.9]} 33. f5
{[%clk 0:00:30.6]} 33... exf5 {[%clk 0:02:28.3]} 34. gxf5 {[%clk 0:00:29.4]}
34... Rc5 {[%clk 0:02:08.2]} 35. fxg6 {[%clk 0:00:21]} 35... Rxg5+ {[%clk
0:02:05.5]} 36. Kh2 {[%clk 0:00:18.1]} 36... Rxg6 {[%clk 0:02:04]} 37. Rb8+
{[%clk 0:00:17]} 37... Kg7 {[%clk 0:02:02.8]} 38. Rb1 {[%clk 0:00:13.9]} 38...
Be5+ {[%clk 0:02:01.1]} 39. Kh3 {[%clk 0:00:10.8]} 39... c3 {[%clk 0:02:00.2]}
40. Rc1 {[%clk 0:00:08.4]} 40... Rc6 {[%clk 0:01:58.3]} 41. Rc2 {[%clk
0:00:07.4]} 41... Kf6 {[%clk 0:01:57]} 42. Kg4 {[%clk 0:00:06.8]} 42... Ke6
{[%clk 0:01:56.2]} 43. Kf3 {[%clk 0:00:06.4]} 43... Kd5 {[%clk 0:01:55.3]} 44.
Ke3 {[%clk 0:00:05.8]} 44... f5 {[%clk 0:01:53.5]} 45. Kd3 {[%clk 0:00:02.8]}
45... Rc4 {[%clk 0:01:52]} 46. Ke3 {[%clk 0:00:00.5]} 46... Rh4 {[%clk
0:01:49.6]} 0-1

[Event "Live Chess"]
[Site "Chess.com"]
[Date "2023.05.20"]
[Round "-"]
[White "domrobson"]
[Black "fso"]
[Result "1-0"]
[WhiteElo "1778"]
[BlackElo "2247"]
[TimeControl "300"]
[EndTime "13:50:42 PDT"]
[Termination "domrobson won on time"]

1. d4 {[%clk 0:04:59.1]} 1... d5 {[%clk 0:04:55.4]} 2. c4 {[%clk 0:04:57.8]}
2... e6 {[%clk 0:04:47.1]} 3. Nf3 {[%clk 0:04:57.3]} 3... c5 {[%clk 0:04:44.9]}
4. Nc3 {[%clk 0:04:55.2]} 4... Nc6 {[%clk 0:04:42.3]} 5. cxd5 {[%clk 0:04:53.5]}
5... exd5 {[%clk 0:04:41.4]} 6. Bg5 {[%clk 0:04:50.2]} 6... Qa5 {[%clk
0:04:30.5]} 7. Bd2 {[%clk 0:04:45.4]} 7... Qd8 {[%clk 0:04:29]} 8. Bg5 {[%clk
0:04:43.5]} 8... Nf6 {[%clk 0:04:24]} 9. e3 {[%clk 0:04:41]} 9... Be7 {[%clk
0:04:08.5]} 10. dxc5 {[%clk 0:04:39]} 10... O-O {[%clk 0:03:57.9]} 11. Be2
{[%clk 0:04:32.7]} 11... Bxc5 {[%clk 0:03:51]} 12. O-O {[%clk 0:04:27.4]} 12...
Be6 {[%clk 0:03:45.6]} 13. Nd4 {[%clk 0:04:22.8]} 13... Nxd4 {[%clk 0:03:40.4]}
14. exd4 {[%clk 0:04:21]} 14... Bd6 {[%clk 0:03:38.8]} 15. Bf3 {[%clk
0:04:18.9]} 15... h6 {[%clk 0:03:35.3]} 16. Bxf6 {[%clk 0:04:16.5]} 16... Qxf6
{[%clk 0:03:29.3]} 17. Nxd5 {[%clk 0:04:14.5]} 17... Bxd5 {[%clk 0:02:59.8]} 18.
Bxd5 {[%clk 0:04:12.5]} 18... Rfd8 {[%clk 0:02:49.5]} 19. Bxb7 {[%clk
0:04:07.6]} 19... Rab8 {[%clk 0:02:47.9]} 20. Qf3 {[%clk 0:04:01.9]} 20... Qxd4
{[%clk 0:02:39.4]} 21. Rab1 {[%clk 0:03:59]} 21... Qe5 {[%clk 0:01:54.8]} 22. g3
{[%clk 0:03:49.6]} 22... Rd7 {[%clk 0:01:46.3]} 23. Bc6 {[%clk 0:03:44]} 23...
Rc7 {[%clk 0:01:44]} 24. b3 {[%clk 0:03:42]} 24... Bc5 {[%clk 0:01:39.9]} 25.
Rbe1 {[%clk 0:03:33]} 25... Qd6 {[%clk 0:01:29.8]} 26. Be4 {[%clk 0:03:28.3]}
26... Bb6 {[%clk 0:01:23.1]} 27. Rd1 {[%clk 0:03:23.8]} 27... Qe7 {[%clk
0:01:18.6]} 28. Rfe1 {[%clk 0:03:21.4]} 28... Qc5 {[%clk 0:01:15.5]} 29. Rd5
{[%clk 0:03:02.7]} 29... Qb4 {[%clk 0:01:10.8]} 30. Red1 {[%clk 0:02:59.4]}
30... Rf8 {[%clk 0:01:07.2]} 31. Rd7 {[%clk 0:02:50.5]} 31... Rxd7 {[%clk
0:01:04.8]} 32. Rxd7 {[%clk 0:02:48.9]} 32... Qe1+ {[%clk 0:00:48]} 33. Kg2
{[%clk 0:02:46.8]} 33... Bxf2 {[%clk 0:00:44.6]} 34. Bd5 {[%clk 0:02:25.7]}
34... Qg1+ {[%clk 0:00:39.1]} 35. Kh3 {[%clk 0:02:22.7]} 35... Qf1+ {[%clk
0:00:34]} 36. Qg2 {[%clk 0:02:16.7]} 36... Qxg2+ {[%clk 0:00:31.6]} 37. Kxg2
{[%clk 0:02:15]} 37... Bb6 {[%clk 0:00:30.2]} 38. a4 {[%clk 0:02:12.5]} 38...
Bc5 {[%clk 0:00:27.2]} 39. Rb7 {[%clk 0:02:07.5]} 39... a5 {[%clk 0:00:24.2]}
40. Rb5 {[%clk 0:02:05.2]} 40... Bb4 {[%clk 0:00:23.8]} 41. Bc4 {[%clk
0:02:02.9]} 41... g6 {[%clk 0:00:23.1]} 42. Rb6 {[%clk 0:01:59.7]} 42... Kg7
{[%clk 0:00:22.7]} 43. Rb7 {[%clk 0:01:58.5]} 43... Kf6 {[%clk 0:00:21.6]} 44.
h4 {[%clk 0:01:56.2]} 44... Be7 {[%clk 0:00:20.7]} 45. Rb6+ {[%clk 0:01:54.1]}
45... Kg7 {[%clk 0:00:19.6]} 46. Rb5 {[%clk 0:01:52.7]} 46... Bb4 {[%clk
0:00:18.4]} 47. g4 {[%clk 0:01:52.2]} 47... Rd8 {[%clk 0:00:17.3]} 48. Rb7
{[%clk 0:01:50.3]} 48... Rf8 {[%clk 0:00:14.4]} 49. Kf3 {[%clk 0:01:49.2]} 49...
Kf6 {[%clk 0:00:12.7]} 50. g5+ {[%clk 0:01:47.6]} 50... hxg5 {[%clk 0:00:11.8]}
51. hxg5+ {[%clk 0:01:47.2]} 51... Kxg5 {[%clk 0:00:11.7]} 52. Rb5+ {[%clk
0:01:46]} 52... Kf6 {[%clk 0:00:10.7]} 53. Rb6+ {[%clk 0:01:45.7]} 53... Kg7
{[%clk 0:00:10.6]} 54. Rb7 {[%clk 0:01:44.6]} 54... Kf6 {[%clk 0:00:09.1]} 55.
Kg4 {[%clk 0:01:44.5]} 55... g5 {[%clk 0:00:08.3]} 56. Rb6+ {[%clk 0:01:43.3]}
56... Kg7 {[%clk 0:00:08]} 57. Kxg5 {[%clk 0:01:42.4]} 57... Rd8 {[%clk
0:00:07.6]} 58. Rb7 {[%clk 0:01:40.7]} 58... Rf8 {[%clk 0:00:06.8]} 59. Kf5
{[%clk 0:01:39.7]} 59... Bc3 {[%clk 0:00:06.4]} 60. Rd7 {[%clk 0:01:37.3]} 60...
Rc8 {[%clk 0:00:05.9]} 61. Rxf7+ {[%clk 0:01:35.2]} 61... Kh6 {[%clk 0:00:05.6]}
62. Ra7 {[%clk 0:01:34.4]} 62... Rc5+ {[%clk 0:00:05.1]} 63. Ke4 {[%clk
0:01:33.2]} 63... Re5+ {[%clk 0:00:04.1]} 64. Kd3 {[%clk 0:01:32.7]} 64... Bb4
{[%clk 0:00:03.4]} 65. Rb7 {[%clk 0:01:31.6]} 65... Re7 {[%clk 0:00:02.6]} 66.
Rb6+ {[%clk 0:01:30.8]} 66... Kh5 {[%clk 0:00:01]} 67. Rb5+ {[%clk 0:01:30.7]}
67... Kg4 {[%clk 0:00:00.3]} 68. Rd5 {[%clk 0:01:29.7]} 68... Kf4 {[%clk
0:00:00.2]} 69. Rb5 {[%clk 0:01:27.1]} 69... Rd7+ {[%clk 0:00:00.1]} 70. Rd5
{[%clk 0:01:26.1]} 1-0

[Event "Live Chess"]
[Site "Chess.com"]
[Date "2023.05.20"]
[Round "-"]
[White "anatoliy10912"]
[Black "wot-not"]
[Result "1-0"]
[WhiteElo "1558"]
[BlackElo "1511"]
[TimeControl "300"]
[EndTime "13:50:43 PDT"]
[Termination "anatoliy10912 won by checkmate"]

1. c4 {[%clk 0:04:57.7]} 1... Nf6 {[%clk 0:04:57.2]} 2. Nc3 {[%clk 0:04:57.2]}
2... d6 {[%clk 0:04:56.4]} 3. d4 {[%clk 0:04:55.8]} 3... c5 {[%clk 0:04:54.5]}
4. dxc5 {[%clk 0:04:54.4]} 4... Nc6 {[%clk 0:04:46.5]} 5. cxd6 {[%clk
0:04:52.6]} 5... exd6 {[%clk 0:04:45.6]} 6. Bf4 {[%clk 0:04:48.9]} 6... Be7
{[%clk 0:04:42.7]} 7. Nf3 {[%clk 0:04:47.2]} 7... O-O {[%clk 0:04:41.2]} 8. e3
{[%clk 0:04:45.8]} 8... Bg4 {[%clk 0:04:40.1]} 9. Be2 {[%clk 0:04:44.7]} 9...
Qb6 {[%clk 0:04:27.8]} 10. b3 {[%clk 0:04:41.5]} 10... Qb4 {[%clk 0:04:23]} 11.
Qc2 {[%clk 0:04:39.6]} 11... Ne4 {[%clk 0:04:16]} 12. Rc1 {[%clk 0:04:34.7]}
12... Bf6 {[%clk 0:04:07.2]} 13. Qxe4 {[%clk 0:04:27.7]} 13... Bxc3+ {[%clk
0:04:06.1]} 14. Kd1 {[%clk 0:04:10.9]} 14... Rad8 {[%clk 0:03:45.8]} 15. Bd3
{[%clk 0:03:45.4]} 15... Ne5 {[%clk 0:03:39.8]} 16. Qxh7# {[%clk 0:03:42.6]} 1-0

[Event "Live Chess"]
[Site "Chess.com"]
[Date "2023.05.20"]
[Round "-"]
[White "Duke_of_Bebington"]
[Black "Greenbecker"]
[Result "1-0"]
[WhiteElo "1586"]
[BlackElo "1638"]
[TimeControl "300"]
[EndTime "13:50:57 PDT"]
[Termination "Duke_of_Bebington won by resignation"]

1. e4 {[%clk 0:04:58.4]} 1... e6 {[%clk 0:04:58.9]} 2. d4 {[%clk 0:04:56.9]}
2... d5 {[%clk 0:04:57.5]} 3. Nd2 {[%clk 0:04:56.6]} 3... dxe4 {[%clk
0:04:56.5]} 4. Nxe4 {[%clk 0:04:54.8]} 4... Bd7 {[%clk 0:04:56.1]} 5. Nf3 {[%clk
0:04:52.9]} 5... Bc6 {[%clk 0:04:55.6]} 6. Bd3 {[%clk 0:04:51.2]} 6... Nd7
{[%clk 0:04:53.7]} 7. O-O {[%clk 0:04:49.6]} 7... Ngf6 {[%clk 0:04:53.1]} 8. Re1
{[%clk 0:04:48.1]} 8... Nxe4 {[%clk 0:04:52.2]} 9. Bxe4 {[%clk 0:04:47.1]} 9...
Bxe4 {[%clk 0:04:51.5]} 10. Rxe4 {[%clk 0:04:46.5]} 10... Nf6 {[%clk 0:04:51]}
11. Re3 {[%clk 0:04:40.1]} 11... Be7 {[%clk 0:04:49.8]} 12. b3 {[%clk
0:04:37.9]} 12... O-O {[%clk 0:04:48.6]} 13. Bb2 {[%clk 0:04:37.5]} 13... Nd5
{[%clk 0:04:46.1]} 14. Re1 {[%clk 0:04:32.3]} 14... c5 {[%clk 0:04:43.9]} 15. c4
{[%clk 0:04:30.2]} 15... Nf6 {[%clk 0:04:41.4]} 16. Qc2 {[%clk 0:04:22.8]} 16...
cxd4 {[%clk 0:04:39.2]} 17. Bxd4 {[%clk 0:04:21.6]} 17... Rc8 {[%clk 0:04:33.6]}
18. Rad1 {[%clk 0:04:18.2]} 18... Qc7 {[%clk 0:04:31.3]} 19. Ng5 {[%clk
0:04:14.1]} 19... h6 {[%clk 0:04:26.6]} 20. Bxf6 {[%clk 0:04:11.5]} 20... hxg5
{[%clk 0:04:23.6]} 21. Bxe7 {[%clk 0:04:08.6]} 21... Qxe7 {[%clk 0:04:22.1]} 22.
Rd3 {[%clk 0:03:56.1]} 22... Rfd8 {[%clk 0:04:19.8]} 23. Red1 {[%clk 0:03:54.7]}
23... Rxd3 {[%clk 0:04:17.5]} 24. Rxd3 {[%clk 0:03:53.2]} 24... Rd8 {[%clk
0:04:15.1]} 25. Kf1 {[%clk 0:03:48.6]} 25... f6 {[%clk 0:04:04.7]} 26. Ke2
{[%clk 0:03:32]} 26... Rxd3 {[%clk 0:04:02.8]} 27. Qxd3 {[%clk 0:03:29.3]} 27...
Kf7 {[%clk 0:04:01.6]} 28. h3 {[%clk 0:03:21]} 28... Qc7 {[%clk 0:03:57]} 29.
Qe4 {[%clk 0:03:09.4]} 29... b6 {[%clk 0:03:52.1]} 30. g3 {[%clk 0:02:58.5]}
30... f5 {[%clk 0:03:43.5]} 31. Qe3 {[%clk 0:02:54.1]} 31... Kf6 {[%clk
0:03:39.4]} 32. f4 {[%clk 0:02:49.9]} 32... gxf4 {[%clk 0:03:35]} 33. gxf4
{[%clk 0:02:48.4]} 33... Qd7 {[%clk 0:03:17.5]} 34. Qd3 {[%clk 0:02:24.7]} 34...
Qxd3+ {[%clk 0:03:13.5]} 35. Kxd3 {[%clk 0:02:24.6]} 35... g5 {[%clk 0:03:12.3]}
36. b4 {[%clk 0:02:24.1]} 36... g4 {[%clk 0:03:09.1]} 37. hxg4 {[%clk
0:02:18.8]} 37... fxg4 {[%clk 0:03:08.1]} 38. Ke3 {[%clk 0:02:18.4]} 38... Kf5
{[%clk 0:03:03.4]} 39. c5 {[%clk 0:02:13.7]} 39... bxc5 {[%clk 0:03:01.1]} 40.
bxc5 {[%clk 0:02:13]} 40... g3 {[%clk 0:03:00]} 41. Kf3 {[%clk 0:02:11.6]} 41...
e5 {[%clk 0:02:58.1]} 42. c6 {[%clk 0:01:56.6]} 42... Ke6 {[%clk 0:02:55.9]} 43.
fxe5 {[%clk 0:01:54]} 43... g2 {[%clk 0:02:53.7]} 44. Kxg2 {[%clk 0:01:52.3]}
44... a5 {[%clk 0:02:52.3]} 45. Kf3 {[%clk 0:01:50.6]} 45... a4 {[%clk
0:02:51.6]} 46. Ke4 {[%clk 0:01:48.7]} 46... a3 {[%clk 0:02:51.1]} 47. Kd4
{[%clk 0:01:46.2]} 47... Ke7 {[%clk 0:02:50.4]} 48. Kd5 {[%clk 0:01:45.3]} 48...
Kd8 {[%clk 0:02:49.7]} 49. Kd6 {[%clk 0:01:43.9]} 49... Kc8 {[%clk 0:02:49.3]}
50. c7 {[%clk 0:01:42.9]} 50... Kb7 {[%clk 0:02:48.5]} 51. Kd7 {[%clk
0:01:42.3]} 1-0

[Event "Live Chess"]
[Site "Chess.com"]
[Date "2023.05.20"]
[Round "-"]
[White "Jeffaroow"]
[Black "Bob2pen"]
[Result "0-1"]
[WhiteElo "468"]
[BlackElo "1822"]
[TimeControl "300"]
[EndTime "13:51:01 PDT"]
[Termination "Bob2pen won by checkmate"]

1. e4 {[%clk 0:04:49.8]} 1... e6 {[%clk 0:04:58.4]} 2. Nf3 {[%clk 0:04:47.7]}
2... d5 {[%clk 0:04:57.3]} 3. Nc3 {[%clk 0:04:41.5]} 3... c5 {[%clk 0:04:54.9]}
4. exd5 {[%clk 0:04:39.7]} 4... exd5 {[%clk 0:04:53.7]} 5. Bb5+ {[%clk
0:04:29.3]} 5... Bd7 {[%clk 0:04:47.7]} 6. Ne5 {[%clk 0:04:24.6]} 6... Bxb5
{[%clk 0:04:45]} 7. Nxb5 {[%clk 0:04:22.9]} 7... a6 {[%clk 0:04:39.1]} 8. Nc3
{[%clk 0:04:18.9]} 8... Bd6 {[%clk 0:04:34.4]} 9. Nf3 {[%clk 0:04:12.2]} 9...
Nf6 {[%clk 0:04:28.4]} 10. d4 {[%clk 0:04:07]} 10... O-O {[%clk 0:04:23.6]} 11.
dxc5 {[%clk 0:04:04.8]} 11... Re8+ {[%clk 0:04:22.3]} 12. Be3 {[%clk 0:04:01.3]}
12... Bxc5 {[%clk 0:04:18]} 13. O-O {[%clk 0:03:46.4]} 13... Bxe3 {[%clk
0:04:12]} 14. fxe3 {[%clk 0:03:44.4]} 14... Rxe3 {[%clk 0:04:10.4]} 15. Re1
{[%clk 0:03:38.1]} 15... Rxe1+ {[%clk 0:04:05.9]} 16. Nxe1 {[%clk 0:03:35.5]}
16... Nc6 {[%clk 0:04:03.7]} 17. Nf3 {[%clk 0:03:30.4]} 17... Qb6+ {[%clk
0:04:00.8]} 18. Kf1 {[%clk 0:03:27.4]} 18... Ne4 {[%clk 0:03:55.9]} 19. Nxe4
{[%clk 0:03:24.7]} 19... dxe4 {[%clk 0:03:54.5]} 20. Ne1 {[%clk 0:03:10.5]}
20... Re8 {[%clk 0:03:35.3]} 21. c3 {[%clk 0:02:52.8]} 21... Ne5 {[%clk
0:03:30.6]} 22. Nc2 {[%clk 0:02:45.7]} 22... Nd3 {[%clk 0:03:25.4]} 23. Ne1
{[%clk 0:02:31.6]} 23... Qf2# {[%clk 0:03:23]} 0-1

[Event "Live Chess"]
[Site "Chess.com"]
[Date "2023.05.20"]
[Round "-"]
[White "ProfPoisson"]
[Black "SupremeTactician"]
[Result "0-1"]
[WhiteElo "1142"]
[BlackElo "2377"]
[TimeControl "300"]
[EndTime "13:51:03 PDT"]
[Termination "SupremeTactician won by resignation"]

1. e4 {[%clk 0:04:54.1]} 1... e5 {[%clk 0:04:58.4]} 2. Nf3 {[%clk 0:04:51.2]}
2... Nc6 {[%clk 0:04:55.6]} 3. d4 {[%clk 0:04:45.7]} 3... exd4 {[%clk
0:04:54.1]} 4. Bc4 {[%clk 0:04:44.3]} 4... Nf6 {[%clk 0:04:53.3]} 5. e5 {[%clk
0:04:41.6]} 5... d5 {[%clk 0:04:52]} 6. Bb5 {[%clk 0:04:36.9]} 6... Ne4 {[%clk
0:04:48.7]} 7. Nxd4 {[%clk 0:04:35.4]} 7... Bc5 {[%clk 0:04:47.7]} 8. Bxc6+
{[%clk 0:04:22.7]} 8... bxc6 {[%clk 0:04:46.3]} 9. O-O {[%clk 0:04:18.4]} 9...
O-O {[%clk 0:04:43.9]} 10. Nxc6 {[%clk 0:04:08.2]} 10... Qh4 {[%clk 0:04:42]}
11. Qf3 {[%clk 0:03:56.2]} 11... Bg4 {[%clk 0:04:37.7]} 12. g3 {[%clk
0:03:38.8]} 12... Qh5 {[%clk 0:04:36.4]} 13. Qf4 {[%clk 0:03:12.3]} 13... g5
{[%clk 0:04:33.7]} 14. Ne7+ {[%clk 0:02:32.3]} 14... Bxe7 {[%clk 0:04:27.6]} 15.
Qe3 {[%clk 0:02:30]} 15... Bc5 {[%clk 0:04:27.2]} 16. Qb3 {[%clk 0:02:19.5]}
16... Bf3 {[%clk 0:04:18.1]} 17. Nd2 {[%clk 0:02:11.9]} 17... Nxd2 {[%clk
0:04:14.2]} 18. Bxd2 {[%clk 0:02:09.2]} 18... g4 {[%clk 0:04:12.3]} 19. Rae1
{[%clk 0:02:02.2]} 19... Qh3 {[%clk 0:04:10]} 0-1